[Event "*** Titled Tuesday Blitz"]
[Site "Chess.com"]
[Date "2019.10.01"]
[Round "7"]
[White "RitvarsReimanis"]
[Black "GMKrikor"]
[Result "0-1"]
[WhiteElo "2584"]
[BlackElo "2798"]
[TimeControl "180+2"]
[EndTime "14:40:35 PDT"]
[Termination "GMKrikor won by resignation"]

1. d4 {[%clk 0:03:01.9]} 1... Nf6 {[%clk 0:03:00.1]} 2. c4 {[%clk 0:03:02.9]}
2... e6 {[%clk 0:02:52.6]} 3. Nf3 {[%clk 0:03:03.7]} 3... d5 {[%clk 0:02:41.7]}
4. Bf4 {[%clk 0:02:46]} 4... Bb4+ {[%clk 0:02:23.4]} 5. Nbd2 {[%clk 0:02:43.2]}
5... dxc4 {[%clk 0:02:24.8]} 6. e3 {[%clk 0:02:26]} 6... b5 {[%clk 0:02:12.3]}
7. Be2 {[%clk 0:02:22.9]} 7... O-O {[%clk 0:02:10.5]} 8. a4 {[%clk 0:02:19.8]}
8... c6 {[%clk 0:02:10.3]} 9. O-O {[%clk 0:02:20]} 9... Bb7 {[%clk 0:02:11.2]}
10. Ne5 {[%clk 0:02:18.5]} 10... Nbd7 {[%clk 0:01:59.8]} 11. Ndf3 {[%clk
0:02:04.6]} 11... Nxe5 {[%clk 0:01:56]} 12. Nxe5 {[%clk 0:02:05.1]} 12... Nd7
{[%clk 0:01:49.4]} 13. Bf3 {[%clk 0:01:58.7]} 13... Nxe5 {[%clk 0:01:48]} 14.
Bxe5 {[%clk 0:02:00.6]} 14... a6 {[%clk 0:01:44.4]} 15. Be4 {[%clk 0:01:56.1]}
15... Bd6 {[%clk 0:01:05.8]} 16. f4 {[%clk 0:01:33]} 16... f6 {[%clk 0:00:53.1]}
17. Qh5 {[%clk 0:01:11.1]} 17... f5 {[%clk 0:00:54.3]} 18. Bf3 {[%clk
0:01:01.8]} 18... Bxe5 {[%clk 0:00:53.8]} 19. fxe5 {[%clk 0:01:02.9]} 19... Qe7
{[%clk 0:00:50.9]} 20. e4 {[%clk 0:00:54.5]} 20... g6 {[%clk 0:00:45.6]} 21. Qh6
{[%clk 0:00:51.9]} 21... Rad8 {[%clk 0:00:42.7]} 22. exf5 {[%clk 0:00:48]} 22...
exf5 {[%clk 0:00:41.5]} 23. Rfd1 {[%clk 0:00:39.3]} 23... Rd7 {[%clk 0:00:34.6]}
24. axb5 {[%clk 0:00:35.8]} 24... axb5 {[%clk 0:00:36.5]} 25. Ra7 {[%clk
0:00:31.9]} 25... Rfd8 {[%clk 0:00:37.6]} 26. Qf4 {[%clk 0:00:30.3]} 26... Kg7
{[%clk 0:00:32.6]} 27. h4 {[%clk 0:00:22.1]} 27... Ra8 {[%clk 0:00:20.3]} 28.
Rxa8 {[%clk 0:00:21.5]} 28... Bxa8 {[%clk 0:00:22.2]} 29. g4 {[%clk 0:00:22.5]}
29... fxg4 {[%clk 0:00:20.7]} 30. Bxg4 {[%clk 0:00:24.4]} 30... Rd8 {[%clk
0:00:22.3]} 31. e6 {[%clk 0:00:24.5]} 31... Rf8 {[%clk 0:00:17]} 32. Qe5+ {[%clk
0:00:25.2]} 32... Kg8 {[%clk 0:00:18.3]} 33. Rf1 {[%clk 0:00:22]} 33... Rxf1+
{[%clk 0:00:12.5]} 34. Kxf1 {[%clk 0:00:23.9]} 34... Bb7 {[%clk 0:00:13]} 35.
Qb8+ {[%clk 0:00:22.4]} 35... Kg7 {[%clk 0:00:14.5]} 36. Qe5+ {[%clk 0:00:23.9]}
36... Kg8 {[%clk 0:00:16]} 37. Qb8+ {[%clk 0:00:25]} 37... Kg7 {[%clk
0:00:16.6]} 38. Qe5+ {[%clk 0:00:26.6]} 38... Qf6+ {[%clk 0:00:13]} 39. Ke2
{[%clk 0:00:20]} 39... Qxe5+ {[%clk 0:00:14.1]} 40. dxe5 {[%clk 0:00:21.9]}
40... Kf8 {[%clk 0:00:13.4]} 41. Bf3 {[%clk 0:00:20]} 41... Ke7 {[%clk
0:00:14.3]} 42. Ke3 {[%clk 0:00:17.5]} 42... Kxe6 {[%clk 0:00:15]} 43. Kf4
{[%clk 0:00:19.1]} 43... h6 {[%clk 0:00:15.5]} 44. Bg4+ {[%clk 0:00:19.4]} 44...
Ke7 {[%clk 0:00:17]} 45. Bf3 {[%clk 0:00:19.9]} 45... b4 {[%clk 0:00:18.5]} 46.
Be4 {[%clk 0:00:20.2]} 46... Kf7 {[%clk 0:00:14.1]} 47. Ke3 {[%clk 0:00:16.6]}
47... g5 {[%clk 0:00:15.5]} 48. hxg5 {[%clk 0:00:17.6]} 48... hxg5 {[%clk
0:00:17.4]} 49. Bf5 {[%clk 0:00:14.4]} 49... c5 {[%clk 0:00:16.4]} 50. Bg4
{[%clk 0:00:15.6]} 50... Bd5 {[%clk 0:00:16.4]} 51. Bh3 {[%clk 0:00:15.6]} 51...
Ke7 {[%clk 0:00:17.8]} 52. Bg4 {[%clk 0:00:16.6]} 52... Be6 {[%clk 0:00:16.3]}
53. Be2 {[%clk 0:00:17.9]} 53... Kd7 {[%clk 0:00:15.6]} 54. Bf1 {[%clk
0:00:18.2]} 54... Kc6 {[%clk 0:00:16.4]} 55. Ke4 {[%clk 0:00:17.7]} 55... Kb6
{[%clk 0:00:14.8]} 56. Be2 {[%clk 0:00:18.7]} 56... Ka5 {[%clk 0:00:15.9]} 57.
Bd1 {[%clk 0:00:17.3]} 57... b3 {[%clk 0:00:14.8]} 58. Ke3 {[%clk 0:00:17.8]}
58... Kb4 {[%clk 0:00:16.4]} 59. Kd2 {[%clk 0:00:19.2]} 59... g4 {[%clk
0:00:18.1]} 60. Be2 {[%clk 0:00:19.8]} 60... g3 {[%clk 0:00:19.3]} 61. Bf3
{[%clk 0:00:21.2]} 61... Bf5 {[%clk 0:00:18.4]} 62. Bd5 {[%clk 0:00:21.2]} 62...
c3+ {[%clk 0:00:18.8]} 63. bxc3+ {[%clk 0:00:23.1]} 63... Ka3 {[%clk 0:00:20.5]}
64. e6 {[%clk 0:00:23.5]} 64... Bxe6 {[%clk 0:00:19.9]} 65. Bxe6 {[%clk
0:00:23.3]} 65... g2 {[%clk 0:00:21]} 0-1

[Event "*** Titled Tuesday Blitz"]
[Site "Chess.com"]
[Date "2019.10.01"]
[Round "7"]
[White "Roman_Ovetchkin"]
[Black "Sashadav97"]
[Result "1/2-1/2"]
[WhiteElo "2651"]
[BlackElo "2530"]
[TimeControl "180+2"]
[EndTime "14:40:37 PDT"]
[Termination "Game drawn by agreement"]

1. d4 {[%clk 0:02:50.7]} 1... Nf6 {[%clk 0:02:59.7]} 2. c4 {[%clk 0:02:50.4]}
2... e6 {[%clk 0:03:01]} 3. Nc3 {[%clk 0:02:34]} 3... Bb4 {[%clk 0:03:00.4]} 4.
a3 {[%clk 0:02:33.5]} 4... Bxc3+ {[%clk 0:02:57.1]} 5. bxc3 {[%clk 0:02:35.4]}
5... d5 {[%clk 0:02:58.1]} 6. cxd5 {[%clk 0:02:33.8]} 6... exd5 {[%clk 0:03:00]}
7. e3 {[%clk 0:02:34.6]} 7... O-O {[%clk 0:02:59.4]} 8. Bd3 {[%clk 0:02:35.4]}
8... b6 {[%clk 0:02:59.1]} 9. Ne2 {[%clk 0:02:35.9]} 9... c5 {[%clk 0:02:58.3]}
10. O-O {[%clk 0:02:36.4]} 10... Ba6 {[%clk 0:02:58.4]} 11. dxc5 {[%clk
0:02:36.5]} 11... bxc5 {[%clk 0:02:57.3]} 12. Bxa6 {[%clk 0:02:36.8]} 12... Nxa6
{[%clk 0:02:57.3]} 13. c4 {[%clk 0:02:38.3]} 13... dxc4 {[%clk 0:02:49.6]} 14.
Qa4 {[%clk 0:02:39]} 14... Nc7 {[%clk 0:02:42.6]} 15. Qxc4 {[%clk 0:02:37.3]}
15... Rb8 {[%clk 0:02:36.1]} 16. f3 {[%clk 0:02:26.8]} 16... Ne6 {[%clk
0:02:17.9]} 17. e4 {[%clk 0:02:23.4]} 17... Nd7 {[%clk 0:02:10.1]} 18. Rd1
{[%clk 0:02:15.4]} 18... Ne5 {[%clk 0:02:08.2]} 19. Qc2 {[%clk 0:01:46.9]} 19...
Nd4 {[%clk 0:02:08.2]} 20. Nxd4 {[%clk 0:01:39.3]} 20... cxd4 {[%clk 0:02:10.1]}
21. Bb2 {[%clk 0:01:39.8]} 21... d3 {[%clk 0:02:04.4]} 22. Qf2 {[%clk
0:01:40.4]} 22... Nc4 {[%clk 0:02:01.1]} 23. Bd4 {[%clk 0:01:39.5]} 23... d2
{[%clk 0:01:51.7]} 24. Bxa7 {[%clk 0:01:34.7]} 24... Rb3 {[%clk 0:01:46.6]} 25.
Bc5 {[%clk 0:01:32.3]} 25... Re8 {[%clk 0:01:44.5]} 26. Bb4 {[%clk 0:01:29.6]}
26... Rd3 {[%clk 0:01:37.2]} 27. Ra2 {[%clk 0:01:17.5]} 27... Qd7 {[%clk
0:01:30.9]} 28. Raxd2 {[%clk 0:00:56.8]} 28... Nxd2 {[%clk 0:01:24]} 29. Rxd2
{[%clk 0:00:57.8]} 29... Rc8 {[%clk 0:01:10.3]} 30. Qe1 {[%clk 0:00:21.2]} 30...
Qd4+ {[%clk 0:00:48.3]} 31. Kf1 {[%clk 0:00:22]} 31... h6 {[%clk 0:00:45.2]} 32.
Qd1 {[%clk 0:00:19.1]} 32... Rxd2 {[%clk 0:00:40.7]} 33. Qxd2 {[%clk 0:00:20.2]}
33... Qa1+ {[%clk 0:00:41.5]} 34. Kf2 {[%clk 0:00:20.9]} 34... Qb1 {[%clk
0:00:42.7]} 35. Kg3 {[%clk 0:00:21.6]} 35... Rc2 {[%clk 0:00:36.8]} 36. Qd8+
{[%clk 0:00:19.2]} 36... Kh7 {[%clk 0:00:38]} 37. Qd5 {[%clk 0:00:17]} 37... Qf1
{[%clk 0:00:22.1]} 38. Qf5+ {[%clk 0:00:16.9]} 38... Kg8 {[%clk 0:00:22.7]} 39.
Qh3 {[%clk 0:00:18]} 39... Qf2+ {[%clk 0:00:19.1]} 40. Kf4 {[%clk 0:00:17.7]}
40... Qxg2 {[%clk 0:00:17]} 41. Qxg2 {[%clk 0:00:18.4]} 41... Rxg2 {[%clk
0:00:18.9]} 42. h4 {[%clk 0:00:20.1]} 42... g5+ {[%clk 0:00:19.4]} 43. hxg5
{[%clk 0:00:20.5]} 43... Rxg5 {[%clk 0:00:21.3]} 44. Be7 {[%clk 0:00:20.9]}
44... Rg6 {[%clk 0:00:21.7]} 45. e5 {[%clk 0:00:20]} 45... Re6 {[%clk
0:00:19.1]} 46. Bd6 {[%clk 0:00:19.7]} 46... Rg6 {[%clk 0:00:19.2]} 47. a4
{[%clk 0:00:20.3]} 47... Rg1 {[%clk 0:00:19]} 48. a5 {[%clk 0:00:19.9]} 48...
Ra1 {[%clk 0:00:19.8]} 49. Bc7 {[%clk 0:00:21.4]} 49... Ra3 {[%clk 0:00:17.3]}
50. Kg4 {[%clk 0:00:22]} 50... h5+ {[%clk 0:00:16.1]} 51. Kxh5 {[%clk
0:00:22.1]} 51... Rxf3 {[%clk 0:00:17.7]} 52. Kg5 {[%clk 0:00:23.1]} 52... Kf8
{[%clk 0:00:14.5]} 53. Bb6 {[%clk 0:00:24.2]} 53... Ke8 {[%clk 0:00:05.5]} 54.
a6 {[%clk 0:00:25.1]} 54... Ra3 {[%clk 0:00:06.9]} 55. a7 {[%clk 0:00:26.6]}
55... Kd7 {[%clk 0:00:08.2]} 56. Kf5 {[%clk 0:00:26.5]} 56... Rf3+ {[%clk
0:00:08.1]} 57. Ke4 {[%clk 0:00:26.9]} 57... Ra3 {[%clk 0:00:09.6]} 58. Kd5
{[%clk 0:00:27.9]} 58... Ra1 {[%clk 0:00:10.3]} 59. Bc5 {[%clk 0:00:27.6]} 59...
Ra2 {[%clk 0:00:10.6]} 60. Bd4 {[%clk 0:00:28.6]} 60... Ra3 {[%clk 0:00:10.7]}
61. Bc5 {[%clk 0:00:29.7]} 61... Ra2 {[%clk 0:00:11.7]} 62. Bd4 {[%clk
0:00:30.9]} 62... Ra3 {[%clk 0:00:12.8]} 1/2-1/2

[Event "*** Titled Tuesday Blitz"]
[Site "Chess.com"]
[Date "2019.10.01"]
[Round "7"]
[White "Tjktiger"]
[Black "AntonSmirnov"]
[Result "0-1"]
[WhiteElo "2818"]
[BlackElo "2914"]
[TimeControl "180+2"]
[EndTime "14:40:38 PDT"]
[Termination "AntonSmirnov won by resignation"]

1. c4 {[%clk 0:03:01.8]} 1... e5 {[%clk 0:03:00.6]} 2. Nc3 {[%clk 0:03:03.1]}
2... Nc6 {[%clk 0:03:01.4]} 3. Nf3 {[%clk 0:03:03.9]} 3... Nf6 {[%clk
0:03:02.5]} 4. e4 {[%clk 0:03:05]} 4... Bb4 {[%clk 0:03:02.7]} 5. d3 {[%clk
0:03:05.9]} 5... d6 {[%clk 0:03:03.1]} 6. a3 {[%clk 0:03:07.1]} 6... Bxc3+
{[%clk 0:03:02.2]} 7. bxc3 {[%clk 0:03:08.2]} 7... O-O {[%clk 0:03:03.4]} 8. g3
{[%clk 0:03:08.6]} 8... Bg4 {[%clk 0:02:58.5]} 9. Bg2 {[%clk 0:03:06.6]} 9...
Nd7 {[%clk 0:02:59.3]} 10. h3 {[%clk 0:03:06.8]} 10... Bh5 {[%clk 0:03:00.2]}
11. O-O {[%clk 0:03:06.4]} 11... b6 {[%clk 0:02:58.7]} 12. Be3 {[%clk
0:03:05.1]} 12... Qe7 {[%clk 0:02:58.5]} 13. Qd2 {[%clk 0:02:36.4]} 13... Bxf3
{[%clk 0:02:56]} 14. Bxf3 {[%clk 0:02:37.1]} 14... Rae8 {[%clk 0:02:55.9]} 15.
Bg2 {[%clk 0:02:33.4]} 15... Nc5 {[%clk 0:02:55.4]} 16. Rab1 {[%clk 0:02:34.3]}
16... Nd8 {[%clk 0:02:42.2]} 17. Kh2 {[%clk 0:02:28.8]} 17... Nde6 {[%clk
0:02:37]} 18. d4 {[%clk 0:02:24]} 18... Nd7 {[%clk 0:02:37.2]} 19. f4 {[%clk
0:02:24.2]} 19... f6 {[%clk 0:02:27.3]} 20. Rbe1 {[%clk 0:02:19.3]} 20... Kh8
{[%clk 0:02:26.1]} 21. h4 {[%clk 0:02:12.7]} 21... c5 {[%clk 0:02:15.1]} 22. d5
{[%clk 0:02:03.8]} 22... Nd8 {[%clk 0:02:13.7]} 23. f5 {[%clk 0:01:57.5]} 23...
Nf7 {[%clk 0:02:13.8]} 24. g4 {[%clk 0:01:56.6]} 24... h6 {[%clk 0:02:13.5]} 25.
Bf3 {[%clk 0:01:54]} 25... Rb8 {[%clk 0:02:14.3]} 26. a4 {[%clk 0:01:52.8]}
26... a6 {[%clk 0:02:14.9]} 27. Be2 {[%clk 0:01:53.5]} 27... Rb7 {[%clk
0:02:13]} 28. Kg3 {[%clk 0:01:51]} 28... Rfb8 {[%clk 0:02:13.1]} 29. Rb1 {[%clk
0:01:51.6]} 29... Kg8 {[%clk 0:02:12.5]} 30. Rg1 {[%clk 0:01:52.6]} 30... Nf8
{[%clk 0:02:13.6]} 31. Kf2 {[%clk 0:01:52.6]} 31... Nh7 {[%clk 0:02:14.4]} 32.
Qa2 {[%clk 0:01:48.9]} 32... Qd7 {[%clk 0:02:11.4]} 33. Rb2 {[%clk 0:01:42.8]}
33... Nf8 {[%clk 0:02:05.3]} 34. Rgb1 {[%clk 0:01:41.6]} 34... Qc7 {[%clk
0:02:06.2]} 35. a5 {[%clk 0:01:18.7]} 35... bxa5 {[%clk 0:02:03.1]} 36. Rxb7
{[%clk 0:01:18.3]} 36... Rxb7 {[%clk 0:02:05]} 37. Rxb7 {[%clk 0:01:19.9]} 37...
Qxb7 {[%clk 0:02:06.9]} 38. Qxa5 {[%clk 0:01:21.2]} 38... Nd7 {[%clk 0:02:05.4]}
39. Qa4 {[%clk 0:01:20.7]} 39... Kf8 {[%clk 0:02:00.1]} 40. Bd1 {[%clk
0:01:06.1]} 40... Ke7 {[%clk 0:02:00.7]} 41. Qa1 {[%clk 0:00:55.2]} 41... Nb6
{[%clk 0:01:59.6]} 42. Qa2 {[%clk 0:00:46.9]} 42... Nd8 {[%clk 0:01:58.9]} 43.
g5 {[%clk 0:00:44.4]} 43... hxg5 {[%clk 0:01:59.1]} 44. hxg5 {[%clk 0:00:46.3]}
44... Nf7 {[%clk 0:01:55.2]} 45. g6 {[%clk 0:00:43.9]} 45... Ng5 {[%clk
0:01:56.5]} 46. Bc2 {[%clk 0:00:36.6]} 46... Nd7 {[%clk 0:01:51.8]} 47. Kg3
{[%clk 0:00:34.8]} 47... Qc8 {[%clk 0:01:39.8]} 48. Bd3 {[%clk 0:00:13]} 48...
Qh8 {[%clk 0:01:36.4]} 49. Qh2 {[%clk 0:00:13.2]} 49... Qxh2+ {[%clk 0:01:28]}
50. Kxh2 {[%clk 0:00:14.4]} 50... Nb6 {[%clk 0:01:23.9]} 51. Kg3 {[%clk
0:00:14.7]} 51... Na4 {[%clk 0:01:21.4]} 52. Kg4 {[%clk 0:00:13]} 52... Nb2
{[%clk 0:01:22.5]} 53. Bc2 {[%clk 0:00:04.8]} 53... Nxc4 {[%clk 0:01:23.2]} 54.
Bxg5 {[%clk 0:00:05.3]} 54... fxg5 {[%clk 0:01:23.6]} 55. Kxg5 {[%clk
0:00:07.2]} 55... Kf8 {[%clk 0:01:24.1]} 56. f6 {[%clk 0:00:07.8]} 56... a5
{[%clk 0:01:25.2]} 57. Ba4 {[%clk 0:00:07.8]} 57... Nb6 {[%clk 0:01:12.5]} 58.
Bb3 {[%clk 0:00:07.7]} 58... a4 {[%clk 0:01:13.6]} 59. Ba2 {[%clk 0:00:09]}
59... a3 {[%clk 0:01:08.8]} 60. Kf5 {[%clk 0:00:10.2]} 60... Na4 {[%clk
0:01:09.9]} 61. fxg7+ {[%clk 0:00:07.2]} 61... Kxg7 {[%clk 0:01:10.6]} 62. Ke6
{[%clk 0:00:09.1]} 62... Nxc3 {[%clk 0:01:11.5]} 63. Bb3 {[%clk 0:00:09.6]}
63... Nxe4 {[%clk 0:01:12.4]} 64. Ke7 {[%clk 0:00:02.7]} 64... Kxg6 {[%clk
0:01:12.6]} 0-1

[Event "*** Titled Tuesday Blitz"]
[Site "Chess.com"]
[Date "2019.10.01"]
[Round "7"]
[White "FairChess_on_YouTube"]
[Black "1stSecond"]
[Result "1-0"]
[WhiteElo "2987"]
[BlackElo "2850"]
[TimeControl "180+2"]
[EndTime "14:41:02 PDT"]
[Termination "FairChess_on_YouTube won by resignation"]

1. e4 {[%clk 0:03:01.9]} 1... e5 {[%clk 0:03:00.7]} 2. Nf3 {[%clk 0:03:02]} 2...
Nc6 {[%clk 0:03:01.9]} 3. Bb5 {[%clk 0:03:03]} 3... a6 {[%clk 0:03:03.2]} 4. Ba4
{[%clk 0:03:04.1]} 4... Nf6 {[%clk 0:03:04.4]} 5. O-O {[%clk 0:03:04.3]} 5...
Be7 {[%clk 0:03:05.9]} 6. Re1 {[%clk 0:03:04.3]} 6... b5 {[%clk 0:03:07.5]} 7.
Bb3 {[%clk 0:03:05.6]} 7... d6 {[%clk 0:03:09.1]} 8. c3 {[%clk 0:03:02.1]} 8...
O-O {[%clk 0:03:08.7]} 9. d4 {[%clk 0:03:03]} 9... Bg4 {[%clk 0:03:08.7]} 10. d5
{[%clk 0:02:55.1]} 10... Na5 {[%clk 0:03:08]} 11. Bc2 {[%clk 0:02:55.4]} 11...
c5 {[%clk 0:03:09.5]} 12. h3 {[%clk 0:02:53.3]} 12... Bd7 {[%clk 0:02:51.8]} 13.
Nbd2 {[%clk 0:02:52.4]} 13... Nb7 {[%clk 0:02:50.5]} 14. a4 {[%clk 0:02:47.1]}
14... c4 {[%clk 0:02:45.2]} 15. axb5 {[%clk 0:02:25.8]} 15... axb5 {[%clk
0:02:32.2]} 16. Rxa8 {[%clk 0:02:27.7]} 16... Qxa8 {[%clk 0:02:33.5]} 17. b4
{[%clk 0:02:29.3]} 17... cxb3 {[%clk 0:02:30.9]} 18. Nxb3 {[%clk 0:02:30.2]}
18... Rc8 {[%clk 0:02:32.3]} 19. Bd2 {[%clk 0:02:26.1]} 19... Bd8 {[%clk
0:02:12.7]} 20. Qb1 {[%clk 0:02:13.9]} 20... Bb6 {[%clk 0:02:05.4]} 21. Bd3
{[%clk 0:02:14.5]} 21... Qa7 {[%clk 0:02:02.3]} 22. Rf1 {[%clk 0:02:04.2]} 22...
Nh5 {[%clk 0:02:03.8]} 23. Qa1 {[%clk 0:01:55]} 23... Qb8 {[%clk 0:01:54.4]} 24.
Qa6 {[%clk 0:01:47.1]} 24... Nc5 {[%clk 0:01:55.6]} 25. Nxc5 {[%clk 0:01:47.4]}
25... Bxc5 {[%clk 0:01:57.5]} 26. Rb1 {[%clk 0:01:43.7]} 26... Rc7 {[%clk
0:01:56.4]} 27. Qa2 {[%clk 0:01:37.9]} 27... Qb6 {[%clk 0:01:54]} 28. Be1 {[%clk
0:01:34]} 28... Nf4 {[%clk 0:01:50.8]} 29. Rxb5 {[%clk 0:01:16.8]} 29... Qa7
{[%clk 0:01:38.9]} 30. Ra5 {[%clk 0:01:11.9]} 30... Qb7 {[%clk 0:01:13.5]} 31.
Ra8+ {[%clk 0:01:08.6]} 31... Rc8 {[%clk 0:01:07.6]} 32. Rxc8+ {[%clk
0:01:08.7]} 32... Qxc8 {[%clk 0:01:08.6]} 33. Bf1 {[%clk 0:01:08.6]} 33... h6
{[%clk 0:01:05]} 34. Bd2 {[%clk 0:01:05.6]} 34... Nh5 {[%clk 0:00:55.9]} 35. Ne1
{[%clk 0:00:41.9]} 35... Nf6 {[%clk 0:00:33.8]} 36. Qc4 {[%clk 0:00:41.8]} 36...
Qb8 {[%clk 0:00:27.4]} 37. Nd3 {[%clk 0:00:38.8]} 37... Ba7 {[%clk 0:00:22.1]}
38. Nb4 {[%clk 0:00:38.1]} 38... Bc5 {[%clk 0:00:21.4]} 39. Na6 {[%clk
0:00:36.1]} 39... Qb1 {[%clk 0:00:06]} 40. Nxc5 {[%clk 0:00:35]} 40... dxc5
{[%clk 0:00:06.8]} 41. f3 {[%clk 0:00:25]} 41... Nh5 {[%clk 0:00:07.9]} 42. Qxc5
{[%clk 0:00:14.6]} 42... Ng3 {[%clk 0:00:05.1]} 43. Qf2 {[%clk 0:00:16]} 43...
Nxf1 {[%clk 0:00:06]} 44. Qxf1 {[%clk 0:00:16.4]} 44... Qb2 {[%clk 0:00:07.3]}
45. Qc1 {[%clk 0:00:14.1]} 45... Qxc1+ {[%clk 0:00:04.1]} 46. Bxc1 {[%clk
0:00:14.9]} 46... Bb5 {[%clk 0:00:05.2]} 47. Kf2 {[%clk 0:00:15.7]} 47... g5
{[%clk 0:00:05]} 48. g3 {[%clk 0:00:14.9]} 48... f6 {[%clk 0:00:04.2]} 49. f4
{[%clk 0:00:14.5]} 49... Kf7 {[%clk 0:00:05]} 50. Ke3 {[%clk 0:00:13.1]} 50...
Bf1 {[%clk 0:00:04.4]} 51. h4 {[%clk 0:00:09.1]} 51... gxf4+ {[%clk 0:00:04]}
52. gxf4 {[%clk 0:00:10.2]} 52... h5 {[%clk 0:00:05.6]} 53. Ba3 {[%clk
0:00:10.4]} 53... exf4+ {[%clk 0:00:03.8]} 54. Kxf4 {[%clk 0:00:11]} 54... Ke8
{[%clk 0:00:05.2]} 55. Bc5 {[%clk 0:00:11.1]} 55... Kd7 {[%clk 0:00:06.1]} 56.
Kf5 {[%clk 0:00:10]} 56... Bd3 {[%clk 0:00:05.5]} 57. Kxf6 {[%clk 0:00:10.2]}
57... Bxe4 {[%clk 0:00:07]} 58. Ke5 {[%clk 0:00:11.7]} 58... Bd3 {[%clk
0:00:07.9]} 59. Kd4 {[%clk 0:00:12.7]} 59... Bb1 {[%clk 0:00:07.9]} 60. c4
{[%clk 0:00:13.9]} 60... Ba2 {[%clk 0:00:09.2]} 61. Ba3 {[%clk 0:00:14.5]} 61...
Bb3 {[%clk 0:00:10.5]} 62. Bb4 {[%clk 0:00:15]} 62... Ba2 {[%clk 0:00:11.5]} 63.
Ba5 {[%clk 0:00:15.3]} 63... Bb3 {[%clk 0:00:12.1]} 64. c5 {[%clk 0:00:15.1]}
64... Ba4 {[%clk 0:00:12.7]} 65. Ke5 {[%clk 0:00:14.1]} 65... Bb5 {[%clk
0:00:10.8]} 66. c6+ {[%clk 0:00:14.9]} 1-0

[Event "*** Titled Tuesday Blitz"]
[Site "Chess.com"]
[Date "2019.10.01"]
[Round "7"]
[White "VerdeNotte"]
[Black "GadimbayliA"]
[Result "0-1"]
[WhiteElo "2769"]
[BlackElo "2872"]
[TimeControl "180+2"]
[EndTime "14:41:14 PDT"]
[Termination "GadimbayliA won by resignation"]

1. c4 {[%clk 0:03:01.9]} 1... e5 {[%clk 0:02:56.8]} 2. g3 {[%clk 0:03:02.5]}
2... Nf6 {[%clk 0:02:56.7]} 3. Bg2 {[%clk 0:03:04]} 3... d5 {[%clk 0:02:57.9]}
4. cxd5 {[%clk 0:03:05.2]} 4... Nxd5 {[%clk 0:02:59.8]} 5. Nc3 {[%clk
0:03:06.1]} 5... Nb6 {[%clk 0:03:00.4]} 6. Nf3 {[%clk 0:03:06.8]} 6... Nc6
{[%clk 0:03:00.9]} 7. a3 {[%clk 0:03:07.2]} 7... Be7 {[%clk 0:02:40.2]} 8. b4
{[%clk 0:03:07.2]} 8... O-O {[%clk 0:02:37.2]} 9. O-O {[%clk 0:03:04.5]} 9...
Be6 {[%clk 0:02:33.9]} 10. d3 {[%clk 0:03:05.2]} 10... a5 {[%clk 0:02:32.4]} 11.
b5 {[%clk 0:03:05.8]} 11... Nd4 {[%clk 0:02:33.5]} 12. Rb1 {[%clk 0:03:04]}
12... Nxf3+ {[%clk 0:02:30.2]} 13. Bxf3 {[%clk 0:03:05.9]} 13... Rb8 {[%clk
0:02:27.6]} 14. Bd2 {[%clk 0:03:00.8]} 14... f5 {[%clk 0:02:27.7]} 15. Qc1
{[%clk 0:02:40.5]} 15... Bf6 {[%clk 0:02:19.6]} 16. Rd1 {[%clk 0:02:33.1]} 16...
Qe7 {[%clk 0:02:16.4]} 17. Be3 {[%clk 0:02:27.7]} 17... Rfd8 {[%clk 0:02:16.8]}
18. a4 {[%clk 0:02:21.1]} 18... g5 {[%clk 0:02:14.3]} 19. Qc2 {[%clk 0:02:15.6]}
19... g4 {[%clk 0:02:12.1]} 20. Bg2 {[%clk 0:02:15.8]} 20... h5 {[%clk
0:02:11.2]} 21. Rbc1 {[%clk 0:02:10.4]} 21... h4 {[%clk 0:02:07.5]} 22. Nb1
{[%clk 0:02:11.2]} 22... Rd7 {[%clk 0:02:05]} 23. Bc5 {[%clk 0:02:10]} 23... Qh7
{[%clk 0:02:00.7]} 24. Nd2 {[%clk 0:02:10.8]} 24... Qh6 {[%clk 0:01:44.6]} 25.
Be3 {[%clk 0:02:09.4]} 25... Qh5 {[%clk 0:01:42.1]} 26. d4 {[%clk 0:01:51.3]}
26... hxg3 {[%clk 0:01:37.1]} 27. hxg3 {[%clk 0:01:44.2]} 27... Rh7 {[%clk
0:01:38.1]} 28. dxe5 {[%clk 0:01:20.6]} 28... Qh2+ {[%clk 0:01:28.4]} 29. Kf1
{[%clk 0:01:21.7]} 29... Bd5 {[%clk 0:01:30.3]} 30. Bxd5+ {[%clk 0:00:54.3]}
30... Nxd5 {[%clk 0:01:32.2]} 31. Ke1 {[%clk 0:00:55.6]} 31... Be7 {[%clk
0:01:10.8]} 32. Nf1 {[%clk 0:00:52.6]} 32... Qg2 {[%clk 0:01:08]} 33. Qb3 {[%clk
0:00:43.2]} 33... Bb4+ {[%clk 0:01:05.6]} 34. Bd2 {[%clk 0:00:37.2]} 34... Rh1
{[%clk 0:00:54.1]} 35. Bxb4 {[%clk 0:00:38.1]} 35... Rxf1+ {[%clk 0:00:53.3]}
36. Kd2 {[%clk 0:00:39.4]} 36... Rxd1+ {[%clk 0:00:55.2]} 37. Kxd1 {[%clk
0:00:31.8]} 37... axb4 {[%clk 0:00:57.1]} 38. Rxc7 {[%clk 0:00:27.6]} 38... Rd8
{[%clk 0:00:51.2]} 39. Rxb7 {[%clk 0:00:12.1]} 39... Kf8 {[%clk 0:00:46.6]} 40.
Kc1 {[%clk 0:00:12.1]} 40... Qf1+ {[%clk 0:00:39.3]} 41. Kb2 {[%clk 0:00:09.3]}
41... Qxe2+ {[%clk 0:00:38.8]} 42. Qc2 {[%clk 0:00:10.8]} 42... Qxe5+ {[%clk
0:00:38.8]} 43. Kb3 {[%clk 0:00:12.3]} 43... Qd4 {[%clk 0:00:29.3]} 44. Qxf5+
{[%clk 0:00:08.9]} 44... Nf6 {[%clk 0:00:30.4]} 45. Rc7 {[%clk 0:00:05.9]} 45...
Qd1+ {[%clk 0:00:28]} 46. Kxb4 {[%clk 0:00:06.4]} 46... Qd2+ {[%clk 0:00:29.2]}
47. Rc3 {[%clk 0:00:04.3]} 47... Qb2+ {[%clk 0:00:30.4]} 48. Rb3 {[%clk
0:00:04.5]} 48... Qd4+ {[%clk 0:00:28.9]} 49. Ka3 {[%clk 0:00:05.7]} 49... Qa1+
{[%clk 0:00:28.2]} 50. Kb4 {[%clk 0:00:07.2]} 50... Rd4+ {[%clk 0:00:21.4]} 51.
Kc5 {[%clk 0:00:07.8]} 51... Rd5+ {[%clk 0:00:22.3]} 52. Qxd5 {[%clk 0:00:08.7]}
52... Nxd5 {[%clk 0:00:20.1]} 53. Kxd5 {[%clk 0:00:10.6]} 53... Qxa4 {[%clk
0:00:21.5]} 54. Rb2 {[%clk 0:00:05.2]} 54... Qa3 {[%clk 0:00:21]} 55. Rd2 {[%clk
0:00:05.1]} 55... Qc3 {[%clk 0:00:18]} 56. Rd4 {[%clk 0:00:05.5]} 56... Qf3+
{[%clk 0:00:15.2]} 57. Ke5 {[%clk 0:00:06.7]} 57... Kg7 {[%clk 0:00:14.4]} 58.
Rf4 {[%clk 0:00:06.8]} 58... Qe2+ {[%clk 0:00:14.7]} 59. Kf5 {[%clk 0:00:08.1]}
59... Kh6 {[%clk 0:00:12.3]} 60. b6 {[%clk 0:00:06.5]} 60... Kh5 {[%clk
0:00:08.7]} 61. Rb4 {[%clk 0:00:05.4]} 61... Qxf2+ {[%clk 0:00:09.4]} 62. Rf4
{[%clk 0:00:02.7]} 62... Qxb6 {[%clk 0:00:09.1]} 63. Re4 {[%clk 0:00:04.1]}
63... Qf2+ {[%clk 0:00:08.5]} 64. Ke6 {[%clk 0:00:04.6]} 64... Qxg3 {[%clk
0:00:09.5]} 65. Kd5 {[%clk 0:00:06.1]} 65... Kh4 {[%clk 0:00:10.6]} 66. Kd4
{[%clk 0:00:05.2]} 66... Qf2+ {[%clk 0:00:11.6]} 67. Kd3 {[%clk 0:00:06.7]}
67... Qf3+ {[%clk 0:00:12.5]} 68. Re3 {[%clk 0:00:07.4]} 68... Kg3 {[%clk
0:00:13.4]} 69. Kd2 {[%clk 0:00:08.4]} 69... Qxe3+ {[%clk 0:00:14.5]} 70. Kxe3
{[%clk 0:00:09.8]} 70... Kh2 {[%clk 0:00:16.4]} 0-1